fUST/lending_fUST_20240124
["ID","MTS","AMOUNT","RATE_DAILY","PERIOD"]
[312606253,1706067055385,-500.0,0.00041095,31]
[312606254,1706067055394,-1006.41,0.00041095,31]
[312606255,1706067055403,-2637.76,0.00041095,31]
[312606256,1706067055413,-458.9882382,0.00041095,31]
[312606257,1706067055423,-2585.0,0.00041095,31]
[312606258,1706067055432,-750.71,0.00041095,31]
[312606259,1706067055441,-500.0,0.00041095,31]
[312606260,1706067055450,-1030.98,0.00041095,31]
[312606261,1706067055459,-539.82384846,0.00041095,31]
[312606262,1706067055469,-459.683114,0.00041095,2]
[312606263,1706067055478,-459.68311342,0.00041095,2]
[312606264,1706067055487,-164.979449,0.00041096,2]
[312606265,1706067055496,-163.1461608,0.00041105,30]
[312606266,1706067055505,-158.1570697,0.00041142,30]
[312606267,1706067055514,-158.1570697,0.00041227,30]
[312606268,1706067055523,-1280.40064572,0.00041367,4]
[312606269,1706067055531,-243.97478798,0.00041367,4]
[312606270,1706067055541,-230.98960504,0.00041367,4]
[312606271,1706067055550,-463.55294185,0.00041367,20]
[312606272,1706067055559,-764.12394505,0.00041369,2]
[312606273,1706067055569,-283.12887752,0.00041369,3]
[312606274,1706067055579,-678.87,0.00041369,31]
[312606275,1706067055588,-500.0,0.00041369,31]
[312606276,1706067055597,-500.0,0.00041369,31]
[312606277,1706067055607,-500.0,0.00041369,7]
[312606278,1706067055617,-500.0,0.00041369,31]
[312606279,1706067055626,-558.8,0.00041369,31]
[312606280,1706067055635,-500.0,0.00041369,31]
[312606281,1706067055645,-185.88668564,0.00041369,31]
[312606282,1706067055654,-682.71,0.00041369,31]
[312606283,1706067055663,-500.0,0.00041369,31]
[312606284,1706067055672,-802.46,0.00041369,31]
[312606285,1706067055681,-500.0,0.00041369,2]
[312606286,1706067055690,-500.0,0.00041369,31]
[312606287,1706067055700,-503.51,0.00041369,31]
[312606288,1706067055709,-500.0,0.00041369,31]
[312606289,1706067055718,-670.06,0.00041369,31]
[312606290,1706067055727,-500.0,0.00041369,31]
[312606291,1706067055736,-500.0,0.00041369,31]
[312606292,1706067055745,-500.0,0.00041369,31]
[312606293,1706067055754,-500.0,0.00041369,31]
[312606294,1706067055764,-500.0,0.00041369,31]
[312606295,1706067055773,-500.0,0.00041369,31]
[312606296,1706067055782,-500.0,0.00041369,31]
[312606297,1706067055791,-1168.36,0.00041369,31]
[312606298,1706067055800,-500.0,0.00041369,31]
[312606299,1706067055809,-500.0,0.00041369,31]
[312606300,1706067055818,-565.25,0.00041369,31]
[312606301,1706067055828,-500.0,0.00041369,31]
[312606302,1706067055837,-500.0,0.00041369,31]
[312606303,1706067055846,-525.59,0.00041369,31]
[312606304,1706067055855,-500.0,0.00041369,31]
[312606305,1706067055864,-1004.25,0.00041369,2]
[312606306,1706067055873,-500.0,0.00041369,20]
[312606307,1706067055883,-809.15,0.00041369,31]
[312606308,1706067055892,-743.08,0.00041369,31]
[312606309,1706067055902,-663.9,0.00041369,31]
[312606310,1706067055912,-369.80093054,0.00041369,31]
[312606311,1706067055922,-555.1,0.00041369,31]
[312606312,1706067055931,-500.0,0.00041369,31]
[312606313,1706067055941,-641.94,0.00041369,31]
[312606314,1706067055950,-500.0,0.00041369,31]
[312606315,1706067055960,-507.31,0.00041369,31]
[312606316,1706067055969,-546.43,0.00041369,31]
[312606317,1706067055978,-500.0,0.00041369,31]
[312606318,1706067055988,-567.46,0.00041369,31]
[312606319,1706067055997,-2049.46,0.00041369,31]
[312606320,1706067056006,-500.0,0.00041369,31]
[312606321,1706067056015,-668.98,0.00041369,31]
[312606322,1706067056025,-1180.38,0.00041369,31]
[312606323,1706067056034,-500.0,0.00041369,31]
[312606324,1706067056044,-778.04,0.00041369,31]
[312606325,1706067056053,-2732.86,0.00041369,31]
[312606326,1706067056063,-1021.45,0.00041369,31]
[312606327,1706067056076,-500.0,0.00041369,31]
[312606328,1706067056086,-1274.62,0.00041369,31]
[312606329,1706067056095,-522.52,0.00041369,31]
[312606330,1706067056105,-500.0,0.00041369,31]
[312606331,1706067056114,-517.15613526,0.00041369,31]
[312606332,1706067056124,-749.04,0.00041369,31]
[312606333,1706067056133,-3177.6,0.00041369,31]
[312606334,1706067056142,-500.0,0.00041369,31]
[312606335,1706067056151,-299.66624098,0.00041369,31]
[312606336,1706067056161,-2432.01,0.00041369,31]
[312606337,1706067056172,-204.72585364,0.00041369,2]
[312606338,1706067056182,-500.0,0.00041369,31]
[312606339,1706067056192,-1430.82,0.00041369,31]
[312606340,1706067056201,-2099.51,0.00041369,31]
[312606341,1706067056211,-500.0,0.00041369,31]
[312606342,1706067056220,-1047.83,0.00041369,31]
[312606343,1706067056229,-2449.99,0.00041369,31]
[312606344,1706067056239,-7512.82,0.00041369,31]
[312606345,1706067056248,-18915.05,0.00041369,14]
[312606346,1706067056257,-846.31,0.00041369,31]
[312606347,1706067056267,-510.06,0.00041369,31]
[312606348,1706067056276,-1013.0,0.00041369,31]
[312606349,1706067056286,-562.25,0.00041369,31]
[312606350,1706067056295,-1946.07,0.00041369,31]
[312606351,1706067056305,-524.38,0.00041369,31]
[312606352,1706067056315,-500.0,0.00041369,31]
[312606353,1706067056324,-534.42,0.00041369,31]
[312606354,1706067056333,-500.0,0.00041369,31]
[312606355,1706067056343,-1252.12,0.00041369,31]
[312606356,1706067056352,-500.0,0.00041369,31]
[312606357,1706067056362,-500.0,0.00041369,31]
[312606358,1706067056371,-666.87,0.00041369,31]
[312606359,1706067056380,-649.53,0.00041369,31]
[312606360,1706067056390,-1237.52,0.00041369,31]
[312606361,1706067056399,-500.0,0.00041369,31]
[312606362,1706067056409,-500.0,0.00041369,31]
[312606363,1706067056419,-547.43,0.00041369,31]
[312606364,1706067056429,-500.0,0.00041369,31]
[312606365,1706067056438,-1006.41,0.00041369,31]
[312606366,1706067056447,-2637.76,0.00041369,31]
[312606367,1706067056458,-2585.0,0.00041369,31]
[312606368,1706067056467,-750.71,0.00041369,31]
[312606369,1706067056477,-500.0,0.00041369,31]
[312606370,1706067056486,-1030.98,0.00041369,31]
[312606371,1706067056496,-288.5494,0.000414,2]
[312606372,1706067056505,-163.1461608,0.00041431,30]
[312606373,1706067056515,-160.0,0.0004149,4]
[312606374,1706067056524,-777.0,0.000415,4]
[312606375,1706067056534,-156.05666548,0.00041558,30]
[312606376,1706067056543,-155.09253296,0.00041641,4]
[312606377,1706067056552,-202.82988523,0.00041641,2]
[312606378,1706067056561,-1441.29944388,0.00041641,4]
[312606379,1706067056571,-587.19797174,0.00041641,4]
[312606380,1706067056581,-623.40182826,0.00041641,4]
[312606381,1706067056590,-678.61677633,0.00041641,4]
[312606382,1706067056600,-678.87,0.00041643,31]
[312606383,1706067056610,-378.84135826,0.00041643,31]
[312606384,1706067056620,-500.0,0.00041643,31]
[312606385,1706067056629,-500.0,0.00041643,7]
[312606386,1706067056639,-500.0,0.00041643,31]
[312606387,1706067056648,-558.8,0.00041643,31]
[312606388,1706067056657,-500.0,0.00041643,31]
[312606389,1706067056666,-682.71,0.00041643,31]
[312606390,1706067056676,-500.0,0.00041643,31]
[312606391,1706067056685,-802.46,0.00041643,31]
[312606392,1706067056694,-500.0,0.00041643,2]
[312606393,1706067056704,-500.0,0.00041643,31]
[312606394,1706067056713,-503.51,0.00041643,31]
[312606395,1706067056723,-500.0,0.00041643,31]
[312606396,1706067056732,-670.06,0.00041643,31]
[312606397,1706067056741,-500.0,0.00041643,31]
[312606398,1706067056750,-500.0,0.00041643,31]
[312606399,1706067056760,-500.0,0.00041643,31]
[312606400,1706067056769,-500.0,0.00041643,31]
[312606401,1706067056778,-500.0,0.00041643,31]
[312606402,1706067056787,-500.0,0.00041643,31]
[312606403,1706067056797,-500.0,0.00041643,31]
[312606404,1706067056806,-1168.36,0.00041643,31]
[312606405,1706067056815,-500.0,0.00041643,31]
[312606406,1706067056824,-500.0,0.00041643,31]
[312606407,1706067056834,-565.25,0.00041643,31]
[312606408,1706067056843,-500.0,0.00041643,31]
[312606409,1706067056853,-500.0,0.00041643,31]
[312606410,1706067056863,-525.59,0.00041643,31]
[312606411,1706067056872,-500.0,0.00041643,31]
[312606412,1706067056882,-1004.25,0.00041643,2]
[312606413,1706067056891,-500.0,0.00041643,20]
[312606414,1706067056901,-809.15,0.00041643,31]
[312606415,1706067056910,-743.08,0.00041643,31]
[312606416,1706067056920,-663.9,0.00041643,31]
[312606417,1706067056930,-555.1,0.00041643,31]
[312606418,1706067056939,-500.0,0.00041643,31]
[312606419,1706067056948,-641.94,0.00041643,31]
[312606420,1706067056957,-500.0,0.00041643,31]
[312606421,1706067056967,-507.31,0.00041643,31]
[312606422,1706067056976,-546.43,0.00041643,31]
[312606423,1706067056985,-500.0,0.00041643,31]
[312606424,1706067056994,-567.46,0.00041643,31]
[312606425,1706067057003,-2049.46,0.00041643,31]
[312606426,1706067057013,-500.0,0.00041643,31]
[312606427,1706067057022,-668.98,0.00041643,31]
[312606428,1706067057031,-1180.38,0.00041643,31]
[312606429,1706067057040,-500.0,0.00041643,31]
[312606430,1706067057050,-778.04,0.00041643,31]
[312606431,1706067057059,-2732.86,0.00041643,31]
[312606432,1706067057077,-1021.45,0.00041643,31]
[312606433,1706067057087,-500.0,0.00041643,31]
[312606434,1706067057097,-1274.62,0.00041643,31]
[312606435,1706067057107,-522.52,0.00041643,31]
[312606436,1706067057117,-500.0,0.00041643,31]
[312606437,1706067057126,-749.04,0.00041643,31]
[312606438,1706067057135,-3177.6,0.00041643,31]
[312606439,1706067057144,-500.0,0.00041643,31]
[312606440,1706067057156,-2432.01,0.00041643,31]
[312606441,1706067057165,-500.0,0.00041643,31]
[312606442,1706067057174,-1430.82,0.00041643,31]
[312606443,1706067057184,-2099.51,0.00041643,31]
[312606444,1706067057193,-500.0,0.00041643,31]
[312606445,1706067057202,-1047.83,0.00041643,31]
[312606446,1706067057212,-2449.99,0.00041643,31]
[312606447,1706067057221,-7512.82,0.00041643,31]
[312606448,1706067057230,-18915.05,0.00041643,14]
[312606449,1706067057241,-846.31,0.00041643,31]
[312606450,1706067057250,-510.06,0.00041643,31]
[312606451,1706067057261,-1013.0,0.00041643,31]
[312606452,1706067057270,-562.25,0.00041643,31]
[312606453,1706067057280,-1946.07,0.00041643,31]
[312606454,1706067057291,-524.38,0.00041643,31]
[312606455,1706067057302,-500.0,0.00041643,31]
[312606456,1706067057313,-534.42,0.00041643,31]
[312606457,1706067057324,-500.0,0.00041643,31]
[312606458,1706067057335,-1252.12,0.00041643,31]
[312606459,1706067057345,-500.0,0.00041643,31]
[312606460,1706067057356,-500.0,0.00041643,31]
[312606461,1706067057366,-666.87,0.00041643,31]
[312606462,1706067057375,-649.53,0.00041643,31]
[312606463,1706067057385,-1237.52,0.00041643,31]
[312606464,1706067057394,-500.0,0.00041643,31]
[312606465,1706067057404,-547.43,0.00041643,31]
[312606466,1706067057413,-500.0,0.00041643,31]
[312606467,1706067057424,-500.0,0.00041643,31]
[312606468,1706067057433,-1006.41,0.00041643,31]
[312606469,1706067057443,-2637.76,0.00041643,31]
[312606470,1706067057453,-2585.0,0.00041643,31]
[312606471,1706067057462,-750.71,0.00041643,31]
[312606472,1706067057472,-500.0,0.00041643,31]
[312606473,1706067057481,-1030.98,0.00041643,31]
[312606474,1706067057491,-163.1461608,0.00041686,30]
[312606475,1706067057500,-155.0,0.0004174,2]
[312606476,1706067057510,-158.15706971,0.00041794,30]
[312606477,1706067057520,-156.05666548,0.00041832,30]
[312606478,1706067057530,-160.0,0.00041897,5]
[312606479,1706067057540,-678.87,0.00041917,31]
[312606480,1706067057549,-500.0,0.00041917,31]
[312606481,1706067057559,-271.00212578,0.00041917,7]
[312606482,1706067057569,-500.0,0.00041917,31]
[312606483,1706067057578,-558.8,0.00041917,31]
[312606484,1706067057589,-500.0,0.00041917,31]
[312606485,1706067057599,-682.71,0.00041917,31]
[312606486,1706067057608,-500.0,0.00041917,31]
[312606487,1706067057618,-802.46,0.00041917,31]
[312606488,1706067057627,-500.0,0.00041917,2]
[312606489,1706067057637,-500.0,0.00041917,31]
[312606490,1706067057647,-503.51,0.00041917,31]
[312606491,1706067057657,-500.0,0.00041917,31]
[312606492,1706067057667,-670.06,0.00041917,31]
[312606493,1706067057764,-500.0,0.00041917,31]
[312606494,1706067057773,-500.0,0.00041917,31]
[312606495,1706067057782,-500.0,0.00041917,31]
[312606496,1706067057792,-500.0,0.00041917,31]
[312606497,1706067057801,-500.0,0.00041917,31]
[312606498,1706067057811,-500.0,0.00041917,31]
[312606499,1706067057820,-500.0,0.00041917,31]
[312606500,1706067057829,-1168.36,0.00041917,31]
[312606501,1706067057838,-500.0,0.00041917,31]
[312606502,1706067057849,-500.0,0.00041917,31]
[312606503,1706067057858,-565.25,0.00041917,31]
[312606504,1706067057868,-500.0,0.00041917,31]
[312606505,1706067057878,-500.0,0.00041917,31]
[312606506,1706067057888,-525.59,0.00041917,31]
[312606507,1706067057898,-500.0,0.00041917,31]
[312606508,1706067057907,-1004.25,0.00041917,2]
[312606509,1706067057918,-500.0,0.00041917,20]
[312606510,1706067057927,-809.15,0.00041917,31]
[312606511,1706067057936,-743.08,0.00041917,31]
[312606512,1706067057945,-663.9,0.00041917,31]
[312606513,1706067057955,-555.1,0.00041917,31]
[312606514,1706067057964,-500.0,0.00041917,31]
[312606515,1706067057974,-641.94,0.00041917,31]
[312606516,1706067057984,-500.0,0.00041917,31]
[312606517,1706067057994,-507.31,0.00041917,31]
[312606518,1706067058004,-546.43,0.00041917,31]
[312606519,1706067058013,-500.0,0.00041917,31]
[312606520,1706067058023,-567.46,0.00041917,31]
[312606521,1706067058033,-2049.46,0.00041917,31]
[312606522,1706067058042,-500.0,0.00041917,31]
[312606523,1706067058051,-668.98,0.00041917,31]
[312606524,1706067058060,-1180.38,0.00041917,31]
[312606525,1706067058073,-500.0,0.00041917,31]
[312606526,1706067058084,-778.04,0.00041917,31]
[312606527,1706067058093,-2732.86,0.00041917,31]
[312606528,1706067058103,-1021.45,0.00041917,31]
[312606529,1706067058114,-500.0,0.00041917,31]
[312606530,1706067058123,-1274.62,0.00041917,31]
[312606531,1706067058133,-522.52,0.00041917,31]
[312606532,1706067058143,-500.0,0.00041917,31]
[312606533,1706067058158,-749.04,0.00041917,31]
[312606534,1706067058168,-3177.6,0.00041917,31]
[312606535,1706067058178,-500.0,0.00041917,31]
[312606536,1706067058188,-2432.01,0.00041917,31]
[312606537,1706067058197,-500.0,0.00041917,31]
[312606538,1706067058207,-1430.82,0.00041917,31]
[312606539,1706067058217,-2099.51,0.00041917,31]
[312606540,1706067058226,-500.0,0.00041917,31]
[312606541,1706067058235,-1047.83,0.00041917,31]
[312606542,1706067058246,-2449.99,0.00041917,31]
[312606543,1706067058255,-7512.82,0.00041917,31]
[312606544,1706067058264,-18915.05,0.00041917,14]
[312606545,1706067058274,-846.31,0.00041917,31]
[312606546,1706067058283,-510.06,0.00041917,31]
[312606547,1706067058292,-1013.0,0.00041917,31]
[312606548,1706067058301,-562.25,0.00041917,31]
[312606549,1706067058311,-1946.07,0.00041917,31]
[312606550,1706067058320,-524.38,0.00041917,31]
[312606551,1706067058329,-500.0,0.00041917,31]
[312606552,1706067058339,-534.42,0.00041917,31]
[312606553,1706067058348,-330.26439232,0.00041917,31]
[312606554,1706067058358,-1252.12,0.00041917,31]
[312606555,1706067058367,-500.0,0.00041917,31]
[312606556,1706067058377,-500.0,0.00041917,31]
[312606557,1706067058386,-666.87,0.00041917,31]
[312606558,1706067058396,-649.53,0.00041917,31]
[312606559,1706067058405,-1237.52,0.00041917,31]
[312606560,1706067058415,-500.0,0.00041917,31]
[312606561,1706067058425,-547.43,0.00041917,31]
[312606562,1706067058434,-500.0,0.00041917,31]
[312606563,1706067058444,-500.0,0.00041917,31]
[312606564,1706067058454,-1006.41,0.00041917,31]
[312606565,1706067058464,-2637.76,0.00041917,31]
[312606566,1706067058474,-2585.0,0.00041917,31]
[312606567,1706067058484,-750.71,0.00041917,31]
[312606568,1706067058493,-500.0,0.00041917,31]
[312606569,1706067058503,-1030.98,0.00041917,31]
[312606570,1706067058513,-150.0,0.00042,30]
[312606571,1706067058523,-17690.9587102,0.00042,120]
[312606572,1706067058532,-150.0,0.00042142,2]
[312606573,1706067058541,-163.1461608,0.00042189,30]
[312606574,1706067058551,-678.87,0.00042191,31]
[312606575,1706067058560,-500.0,0.00042191,31]
[312606576,1706067058570,-500.0,0.00042191,31]
[312606577,1706067058579,-558.8,0.00042191,31]
[312606578,1706067058589,-496.58884288,0.00042191,31]
[312606579,1706067058598,-682.71,0.00042191,31]
[312606580,1706067058608,-500.0,0.00042191,31]
[312606581,1706067058617,-802.46,0.00042191,31]
[312606582,1706067058627,-500.0,0.00042191,2]
[312606583,1706067058637,-500.0,0.00042191,31]
[312606584,1706067058646,-503.51,0.00042191,31]
[312606585,1706067058654,-500.0,0.00042191,31]
[312606586,1706067058664,-670.06,0.00042191,31]
[312606587,1706067058674,-500.0,0.00042191,31]
[312606588,1706067058683,-500.0,0.00042191,31]
[312606589,1706067058693,-500.0,0.00042191,31]
[312606590,1706067058702,-500.0,0.00042191,31]
[312606591,1706067058711,-500.0,0.00042191,31]
[312606592,1706067058721,-500.0,0.00042191,31]
[312606593,1706067058730,-500.0,0.00042191,31]
[312606594,1706067058739,-1168.36,0.00042191,31]
[312606595,1706067058749,-500.0,0.00042191,31]
[312606596,1706067058758,-500.0,0.00042191,31]
[312606597,1706067058767,-565.25,0.00042191,31]
[312606598,1706067058777,-500.0,0.00042191,31]
[312606599,1706067058786,-500.0,0.00042191,31]
[312606600,1706067058795,-525.59,0.00042191,31]
[312606601,1706067058804,-500.0,0.00042191,31]
[312606602,1706067058813,-1004.25,0.00042191,2]
[312606603,1706067058822,-500.0,0.00042191,20]
[312606604,1706067058831,-809.15,0.00042191,31]
[312606605,1706067058841,-743.08,0.00042191,31]
[312606606,1706067058850,-663.9,0.00042191,31]
[312606607,1706067058860,-555.1,0.00042191,31]
[312606608,1706067058869,-500.0,0.00042191,31]
[312606609,1706067058878,-641.94,0.00042191,31]
[312606610,1706067058887,-500.0,0.00042191,31]
[312606611,1706067058897,-507.31,0.00042191,31]
[312606612,1706067058907,-546.43,0.00042191,31]
[312606613,1706067058916,-500.0,0.00042191,31]
[312606614,1706067058925,-567.46,0.00042191,31]
[312606615,1706067058935,-2049.46,0.00042191,31]
[312606616,1706067058944,-500.0,0.00042191,31]
[312606617,1706067058953,-668.98,0.00042191,31]
[312606618,1706067058962,-1180.38,0.00042191,31]
[312606619,1706067058972,-500.0,0.00042191,31]
[312606620,1706067058981,-778.04,0.00042191,31]
[312606621,1706067058991,-2732.86,0.00042191,31]
[312606622,1706067059000,-1021.45,0.00042191,31]
[312606623,1706067059010,-500.0,0.00042191,31]
[312606624,1706067059020,-1274.62,0.00042191,31]
[312606625,1706067059030,-522.52,0.00042191,31]
[312606626,1706067059040,-500.0,0.00042191,31]
[312606627,1706067059049,-749.04,0.00042191,31]
[312606628,1706067059059,-3177.6,0.00042191,31]
[312606629,1706067059068,-500.0,0.00042191,31]
[312606630,1706067059081,-2432.01,0.00042191,31]
[312606631,1706067059090,-500.0,0.00042191,31]
[312606632,1706067059099,-1430.82,0.00042191,31]
[312606633,1706067059108,-2099.51,0.00042191,31]
[312606634,1706067059118,-500.0,0.00042191,31]
[312606635,1706067059127,-1047.83,0.00042191,31]
[312606636,1706067059136,-2449.99,0.00042191,31]
[312606637,1706067059145,-7512.82,0.00042191,31]
[312606638,1706067059155,-18915.05,0.00042191,14]
[312606639,1706067059165,-846.31,0.00042191,31]
[312606640,1706067059174,-510.06,0.00042191,31]
[312606641,1706067059183,-1013.0,0.00042191,31]
[312606642,1706067059193,-562.25,0.00042191,31]
[312606643,1706067059202,-1946.07,0.00042191,31]
[312606644,1706067059212,-524.38,0.00042191,31]
[312606645,1706067059221,-500.0,0.00042191,31]
[312606646,1706067059230,-534.42,0.00042191,31]
[312606647,1706067059240,-1252.12,0.00042191,31]
[312606648,1706067059249,-500.0,0.00042191,31]
[312606649,1706067059258,-500.0,0.00042191,31]
[312606650,1706067059267,-666.87,0.00042191,31]
[312606651,1706067059277,-649.53,0.00042191,31]
[312606652,1706067059286,-1237.52,0.00042191,31]
[312606653,1706067059295,-500.0,0.00042191,31]
[312606654,1706067059304,-547.43,0.00042191,31]
[312606655,1706067059314,-500.0,0.00042191,31]
[312606656,1706067059323,-500.0,0.00042191,31]
[312606657,1706067059332,-1006.41,0.00042191,31]
[312606658,1706067059341,-2637.76,0.00042191,31]
[312606659,1706067059350,-2585.0,0.00042191,31]
[312606660,1706067059360,-500.0,0.00042191,31]
[312606661,1706067059369,-750.71,0.00042191,31]
[312606662,1706067059379,-1030.98,0.00042191,31]
[312606663,1706067059388,-155.96798312,0.00042282,30]
[312606664,1706067059397,-160.0,0.00042305,6]
[312606665,1706067059407,-163.1461608,0.00042309,30]
[312606666,1706067059416,-156.05666552,0.00042429,30]
[312606667,1706067059425,-678.87,0.00042465,31]
[312606668,1706067059434,-500.0,0.00042465,31]
[312606669,1706067059444,-500.0,0.00042465,31]
[312606670,1706067059454,-558.8,0.00042465,31]
[312606671,1706067059463,-682.71,0.00042465,31]
[312606672,1706067059471,-500.0,0.00042465,31]
[312606673,1706067059481,-802.46,0.00042465,31]
[312606674,1706067059490,-500.0,0.00042465,2]
[312606675,1706067059499,-500.0,0.00042465,31]
[312606676,1706067059508,-503.51,0.00042465,31]
[312606677,1706067059517,-547.49095805,0.00042465,31]
[312606678,1706067059526,-670.06,0.00042465,31]
[312606679,1706067059535,-500.0,0.00042465,31]
[312606680,1706067059544,-358.27869392,0.00042465,31]
[312606681,1706067059553,-500.0,0.00042465,31]
[312606682,1706067059563,-500.0,0.00042465,31]
[312606683,1706067059572,-223.34776369,0.00042465,31]
[312606684,1706067059581,-314.03560949,0.00042465,31]
[312606685,1706067059590,-500.0,0.00042465,31]
[312606686,1706067059599,-1168.36,0.00042465,31]
[312606687,1706067059608,-500.0,0.00042465,31]
[312606688,1706067059617,-500.0,0.00042465,31]
[312606689,1706067059626,-565.25,0.00042465,31]
[312606690,1706067059635,-500.0,0.00042465,31]
[312606691,1706067059644,-188.84556169,0.00042465,31]
[312606692,1706067059653,-525.59,0.00042465,31]
[312606693,1706067059662,-500.0,0.00042465,31]
[312606694,1706067059671,-1004.25,0.00042465,2]
[312606695,1706067059680,-500.0,0.00042465,20]
[312606696,1706067059689,-809.15,0.00042465,31]
[312606697,1706067059697,-743.08,0.00042465,31]
[312606698,1706067059707,-663.9,0.00042465,31]
[312606699,1706067059716,-555.1,0.00042465,31]
[312606700,1706067059725,-500.0,0.00042465,31]
[312606701,1706067059734,-641.94,0.00042465,31]
[312606702,1706067059744,-622.11347342,0.00042465,31]
[312606703,1706067059753,-507.31,0.00042465,31]
[312606704,1706067059762,-546.43,0.00042465,31]
[312606705,1706067059772,-500.0,0.00042465,31]
[312606706,1706067059781,-567.46,0.00042465,31]
[312606707,1706067059790,-2049.46,0.00042465,31]
[312606708,1706067059799,-500.0,0.00042465,31]
[312606709,1706067059808,-668.98,0.00042465,31]
[312606710,1706067059818,-1180.38,0.00042465,31]
[312606711,1706067059826,-500.0,0.00042465,31]
[312606712,1706067059836,-778.04,0.00042465,31]
[312606713,1706067059844,-2732.86,0.00042465,31]
[312606714,1706067059853,-1021.45,0.00042465,31]
[312606715,1706067059862,-500.0,0.00042465,31]
[312606716,1706067059871,-1274.62,0.00042465,31]
[312606717,1706067059880,-522.52,0.00042465,31]
[312606718,1706067059890,-500.0,0.00042465,31]
[312606719,1706067059899,-749.04,0.00042465,31]
[312606720,1706067059908,-3177.6,0.00042465,31]
[312606721,1706067059917,-500.0,0.00042465,31]
[312606722,1706067059926,-2432.01,0.00042465,31]
[312606723,1706067059935,-567.88032214,0.00042465,31]
[312606724,1706067060027,-1430.82,0.00042465,31]
[312606725,1706067060037,-2099.51,0.00042465,31]
[312606726,1706067060047,-500.0,0.00042465,31]
[312606727,1706067060057,-1047.83,0.00042465,31]
[312606728,1706067060067,-2449.99,0.00042465,31]
[312606729,1706067060079,-7512.82,0.00042465,31]
[312606730,1706067060089,-18915.05,0.00042465,14]
[312606731,1706067060098,-846.31,0.00042465,31]
[312606732,1706067060108,-510.06,0.00042465,31]
[312606733,1706067060117,-1013.0,0.00042465,31]
[312606734,1706067060126,-562.25,0.00042465,31]
[312606735,1706067060136,-1946.07,0.00042465,31]
[312606736,1706067060146,-524.38,0.00042465,31]
[312606737,1706067060155,-500.0,0.00042465,31]
[312606738,1706067060165,-534.42,0.00042465,31]
[312606739,1706067060174,-1252.12,0.00042465,31]
[312606740,1706067060183,-500.0,0.00042465,31]
[312606741,1706067060192,-500.0,0.00042465,31]
[312606742,1706067060201,-666.87,0.00042465,31]
[312606743,1706067060210,-649.53,0.00042465,31]
[312606744,1706067060219,-1237.52,0.00042465,31]
[312606745,1706067060229,-500.0,0.00042465,31]
[312606746,1706067060238,-547.43,0.00042465,31]
[312606747,1706067060247,-500.0,0.00042465,31]
[312606748,1706067060257,-500.0,0.00042465,31]
[312606749,1706067060266,-1006.41,0.00042465,31]
[312606750,1706067060276,-2637.76,0.00042465,31]
[312606751,1706067060285,-2585.0,0.00042465,31]
[312606752,1706067060295,-500.0,0.00042465,31]